{"text_format":"3","workbook":"xlsx","n_sheets":2,"sheets":["VERWENDEN DIESER ARBEITSMAPPE","NOTENSPIEGEL"],"not_rendered":{"defined_names":7},"read":"whole","date_system":"1900"}

{"sheet":"VERWENDEN DIESER ARBEITSMAPPE","index":0,"n_rows":10,"n_cols":2,"rows_kept":10}
[null,"ANWEISUNGEN"]
[null,"Verwenden Sie das Arbeitsblatt NOTENHEFT, um Noten zu berechnen, wobei jede Aufgabe einer festgelegten Anzahl von Punkten entspricht. "]
[null,"Anweisungen: Speichern Sie unbedingt Sicherungskopien Ihrer Noten."]
[null,"1. Geben Sie den Name der Schule, die Kursinformationen, die Namen der Kursteilnehmer und die Schüler/Studenten-IDs (optional) ein. "]
[null,"2. Passen Sie die Tabelle Note & Notendurchschnitt an das normale Bewertungssystem an."]
[null,"3. Geben Sie die Aufgaben-, Prüfungs- oder Testnamen (z. B. \"Prüfung 1\") beginnend in Zelle H8 zusammen mit den Punkten für jede Aufgabe an. "]
[null,"4. Geben Sie die Ergebnisse für jeden Schüler/Studenten für jede Aufgabe oder jeden Test ein. Die Spalten \"Mittelwert\", \"Punkte\", \"Ltr-Note\" und \"GPA\" werden automatisch berechnet, aber Sie können sie außer Kraft setzen, wenn Sie möchten. Um Bonuspunkte zu vergeben, geben Sie einfach mehr Punkte für eine Aufgabe als die für diese Aufgabe aufgelisteten Punkte."]
[null,"Verwenden Sie den Befehl \"Druckbereich\" im Menü \"Seitenlayout\", wenn Sie den Druckbereich ändern möchten."]
[null,"Die Punkte für die Noten basieren auf einer standardmäßigen Prozentskala entsprechend der in den Zeilen 8 und 9 zugewiesenen Gesamtpunktzahl. Passen Sie jede Aufgabe oder jeden Test an die gewünschte Punktzahl an, und passen Sie den Prozentsatz an die entsprechende Note an. Überschreiben Sie die Bewertungszellen, um manuelle Änderungen vorzunehmen."]
[null,"Geben Sie jede Aufgabe, jede Prüfung oder jeden Test und die dafür zu vergebenden Punkte in die Zellen H8 bis X9 ein."]

{"sheet":"NOTENSPIEGEL","index":1,"n_rows":24,"n_cols":24,"rows_kept":24,"merged":[[1,1,2,6],[3,1,3,6],[4,1,6,6],[7,4,7,6],[8,4,8,6],[10,4,10,6],[11,4,11,6],[20,1,20,2],[20,3,20,4],[21,1,21,2],[21,3,21,4],[22,1,22,2],[22,3,22,4],[23,1,23,2],[23,3,23,4]]}
[null,"NAME IHRER SCHULE"]
[null,"Name des Lehrers"]
[{"$nulls":7},"Punkte",{"$f":"I4*GesamtzahlPunkte","v":118},120,126,134,140,{"v":145.6666666666666,"d":"146"},154,160,166,174,180,186,194]
[null,"Kurs/Projekt",{"$nulls":5},"%",{"v":0.59,"d":"59%"},{"v":0.6,"d":"60%"},{"v":0.63,"d":"63%"},{"v":0.67,"d":"67%"},{"v":0.7,"d":"70%"},{"v":0.728333333333333,"d":"73%"},{"v":0.77,"d":"77%"},{"v":0.8,"d":"80%"},{"v":0.83,"d":"83%"},{"v":0.87,"d":"87%"},{"v":0.9,"d":"90%"},{"v":0.93,"d":"93%"},{"v":0.97,"d":"97%"}]
[null,"Jahr/Semester/Quartal",{"$nulls":5},"Ltr-Note","F","D-","D","D+","C-","C","C+","B-","B","B+","A-","A","A+"]
[{"$nulls":7},"GPA",0,0.67,1,1.33,1.67,2,2.33,2.67,3,3.33,3.67,4,4]
[]
[{"$nulls":4},"Aufgaben-oder Testname",null,null,"HW1","HW2","Q1"]
[{"$nulls":4},"Insgesamt verfügbare Punkte",null,null,50,50,100]
[]
[{"$nulls":4},"Gesamtzahl der Aufgaben und Tests:",null,null,{"$f":"COUNTA(H8:AH8)","v":3}]
[{"$nulls":4},"Mögliche Gesamtpunktzahl:",null,null,{"$f":"SUM(H9:AH9)","v":200}]
[]
[null,"Name des Schülers","ID-Nummer des Schülers","Mittelwert","Punkte","Ltr-Note","GPA","Spalte6","Spalte7","Spalte8","Spalte9","Spalte10","Spalte11","Spalte12","Spalte13","Spalte14","Spalte15","Spalte16","Spalte17","Spalte18","Spalte19","Spalte20","Spalte21","Spalte22"]
[null,"Kursteilnehmernummer 1",null,{"$f":"IFERROR(IF(COUNT(Noten[[#This Row],[Spalte6]:[Spalte22]])=0,\"\",SUM(Noten[[#This Row],[Spalte6]:[Spalte22]])/GesamtzahlPunkte),\"\")","v":{"v":0.91,"d":"91.0%"}},{"$f":"IF(COUNT(Noten[[#This Row],[Spalte6]:[Spalte22]])=0,\"\",SUM(Noten[[#This Row],[Spalte6]:[Spalte22]]))","v":182},{"$f":"IFERROR(IF(Noten[[#This Row],[Mittelwert]]<>\"\",HLOOKUP(Noten[[#This Row],[Mittelwert]]*GesamtzahlPunkte,NotenTabelle,3),\"\"),0)","v":"A-"},{"$f":"IFERROR(IF(Noten[[#This Row],[Mittelwert]]<>\"\",HLOOKUP(Noten[[#This Row],[Mittelwert]]*GesamtzahlPunkte,NotenTabelle,4),\"\"),0)","v":3.67},45,45,92]
[null,"Kursteilnehmernummer 2",null,{"$f":"IFERROR(IF(COUNT(Noten[[#This Row],[Spalte6]:[Spalte22]])=0,\"\",SUM(Noten[[#This Row],[Spalte6]:[Spalte22]])/GesamtzahlPunkte),\"\")","v":{"v":1,"d":"100.0%"}},{"$f":"IF(COUNT(Noten[[#This Row],[Spalte6]:[Spalte22]])=0,\"\",SUM(Noten[[#This Row],[Spalte6]:[Spalte22]]))","v":200},{"$f":"IFERROR(IF(Noten[[#This Row],[Mittelwert]]<>\"\",HLOOKUP(Noten[[#This Row],[Mittelwert]]*GesamtzahlPunkte,NotenTabelle,3),\"\"),0)","v":"A+"},{"$f":"IFERROR(IF(Noten[[#This Row],[Mittelwert]]<>\"\",HLOOKUP(Noten[[#This Row],[Mittelwert]]*GesamtzahlPunkte,NotenTabelle,4),\"\"),0)","v":{"v":4,"d":"4.00"}},50,50,100]
[{"$nulls":3},{"$f":"IFERROR(IF(COUNT(Noten[[#This Row],[Spalte6]:[Spalte22]])=0,\"\",SUM(Noten[[#This Row],[Spalte6]:[Spalte22]])/GesamtzahlPunkte),\"\")","v":""},{"$f":"IF(COUNT(Noten[[#This Row],[Spalte6]:[Spalte22]])=0,\"\",SUM(Noten[[#This Row],[Spalte6]:[Spalte22]]))","v":""},{"$f":"IFERROR(IF(Noten[[#This Row],[Mittelwert]]<>\"\",HLOOKUP(Noten[[#This Row],[Mittelwert]]*GesamtzahlPunkte,NotenTabelle,3),\"\"),0)","v":""},{"$f":"IFERROR(IF(Noten[[#This Row],[Mittelwert]]<>\"\",HLOOKUP(Noten[[#This Row],[Mittelwert]]*GesamtzahlPunkte,NotenTabelle,4),\"\"),0)","v":""}]
[{"$nulls":3},{"$f":"IFERROR(IF(COUNT(Noten[[#This Row],[Spalte6]:[Spalte22]])=0,\"\",SUM(Noten[[#This Row],[Spalte6]:[Spalte22]])/GesamtzahlPunkte),\"\")","v":""},{"$f":"IF(COUNT(Noten[[#This Row],[Spalte6]:[Spalte22]])=0,\"\",SUM(Noten[[#This Row],[Spalte6]:[Spalte22]]))","v":""},{"$f":"IFERROR(IF(Noten[[#This Row],[Mittelwert]]<>\"\",HLOOKUP(Noten[[#This Row],[Mittelwert]]*GesamtzahlPunkte,NotenTabelle,3),\"\"),0)","v":""},{"$f":"IFERROR(IF(Noten[[#This Row],[Mittelwert]]<>\"\",HLOOKUP(Noten[[#This Row],[Mittelwert]]*GesamtzahlPunkte,NotenTabelle,4),\"\"),0)","v":""}]
[{"$nulls":3},{"$f":"IFERROR(IF(COUNT(Noten[[#This Row],[Spalte6]:[Spalte22]])=0,\"\",SUM(Noten[[#This Row],[Spalte6]:[Spalte22]])/GesamtzahlPunkte),\"\")","v":""},{"$f":"IF(COUNT(Noten[[#This Row],[Spalte6]:[Spalte22]])=0,\"\",SUM(Noten[[#This Row],[Spalte6]:[Spalte22]]))","v":""},{"$f":"IFERROR(IF(Noten[[#This Row],[Mittelwert]]<>\"\",HLOOKUP(Noten[[#This Row],[Mittelwert]]*GesamtzahlPunkte,NotenTabelle,3),\"\"),0)","v":""},{"$f":"IFERROR(IF(Noten[[#This Row],[Mittelwert]]<>\"\",HLOOKUP(Noten[[#This Row],[Mittelwert]]*GesamtzahlPunkte,NotenTabelle,4),\"\"),0)","v":""}]
[]
[null,"Kursüberblick",null,"Mittelwert",null,"Ltr-Note","GPA","","","","","","","","","","",""]
[null," Mittelwert",null,{"$f":"IFERROR(AVERAGE(Noten[[#All],[Mittelwert]]),0)","v":{"v":0.9550000000000001,"d":"95.5%"}},null,{"$f":"IFERROR(HLOOKUP(D22*GesamtzahlPunkte,NotenTabelle,3),\"\")","v":"A"},{"$f":"IFERROR(AVERAGE(Noten[[#All],[GPA]]),0)","v":{"v":3.835,"d":"3.84"}},"","","","","","","","","","","","","","","","",""]
[null," Höchste Punktzahl",null,{"$f":"IFERROR(MAX(Noten[[#All],[Mittelwert]]),0)","v":{"v":1,"d":"100.0%"}},null,{"$f":"IFERROR(HLOOKUP(D23*GesamtzahlPunkte,NotenTabelle,3),\"\")","v":"A+"},{"$f":"IFERROR(MAX(Noten[[#All],[GPA]]),0)","v":{"v":4,"d":"4.00"}},"","","","","","","","","","","","","","","","",""]
[null," Niedrigste Punktzahl",null,{"$f":"IFERROR(MIN(Noten[[#All],[Mittelwert]]),0)","v":{"v":0.91,"d":"91.0%"}},null,{"$f":"IFERROR(HLOOKUP(D24*GesamtzahlPunkte,NotenTabelle,3),\"\")","v":"A-"},{"$f":"IFERROR(MIN(Noten[[#All],[GPA]]),0)","v":3.67},"","","","","","","","","","","","","","","","",""]